fUST/lending_fUST_20260128
["ID","MTS","AMOUNT","RATE_DAILY","PERIOD"]
[403853108,1769602241076,-2150.0,0.00015549,2]
[403853109,1769602241085,-496.23,0.000158,2]
[403853110,1769602241097,-150.0,0.00015811,2]
[403853111,1769602241106,-150.0,0.00015811,2]
[403853112,1769602241115,-3000.0,0.00016012,2]
[403853113,1769602241124,-3000.0,0.00016012,2]
[403853114,1769602241134,-496.23,0.000162,2]
[403853115,1769602241143,-792.0,0.00016243,2]
[403853116,1769602241152,-500.0,0.00016438,2]
[403853117,1769602241161,-236.8989366,0.00016438,2]
[403853118,1769602241171,-1904.65778398,0.0001656,2]
[403853119,1769602241180,-1507.06964924,0.0001656,2]
[403853120,1769602241189,-496.23,0.000166,2]
[403853121,1769602241199,-160.0,0.00016606,2]
[403853122,1769602241208,-1041.66666667,0.00016606,2]
[403853123,1769602241217,-160.0,0.00016606,2]
[403853124,1769602241226,-1000.0,0.00016685,2]
[403853125,1769602241236,-496.23,0.00017,2]
[403853126,1769602241245,-618.82390431,0.00017172,2]
[403853127,1769602241255,-7506.87052314,0.00017258,2]
[403853128,1769602241264,-496.23,0.000174,2]
[403853129,1769602241273,-500.0,0.00017687,2]
[403853130,1769602241282,-496.23,0.000178,2]
[403853131,1769602241293,-91321.65609635,0.00018082,3]
[403853132,1769602241301,-496.23,0.000182,2]
[403853133,1769602241310,-1000.0,0.00018354,2]
[403853134,1769602241320,-244.0,0.00018354,2]
[403853135,1769602241329,-1369.0,0.00018549,2]
[403853136,1769602241338,-630.0,0.00018549,2]
[403853137,1769602241347,-2150.0,0.00018549,2]
[403853138,1769602241356,-496.23,0.000186,2]
[403853139,1769602241365,-9392.0431636,0.00018704,2]
[403853140,1769602241374,-150.0,0.00018811,2]
[403853141,1769602241383,-150.0,0.00018811,2]
[403853142,1769602241392,-289.65253593,0.00018849,3]
[403853143,1769602241401,-496.23,0.00019,2]
[403853144,1769602241410,-691.15397105,0.00019172,2]
[403853145,1769602241419,-1811.25,0.00019178,2]
[403853146,1769602241428,-1524.18,0.00019178,2]
[403853147,1769602241437,-1524.19,0.00019178,2]
[403853149,1769602241447,-1016.12,0.00019178,2]
[403853150,1769602241455,-172.01,0.000192,2]
[403853151,1769602241464,-289.19,0.000192,2]
[403853153,1769602241474,-4683.12,0.000192,2]
[403853155,1769602241483,-11040.2,0.000192,2]
[403853157,1769602241492,-496.23,0.000195,2]
[403853159,1769602241500,-7506.87052314,0.00019788,2]
[403853161,1769602241509,-496.23,0.000199,2]
[403853163,1769602241519,-150.0,0.0002,2]
[403853165,1769602241528,-250.0,0.0002,10]
[403853167,1769602241537,-2000.0,0.0002,7]
[403853169,1769602241547,-250.0,0.000201,10]
[403853171,1769602241556,-779.0,0.000201,2]
[403853173,1769602241566,-165.34,0.000201,2]
[403853175,1769602241575,-1000.0,0.00020189,2]
[403853177,1769602241584,-492.0,0.00020189,2]
[403853178,1769602241593,-250.0,0.000202,10]
[403853180,1769602241603,-496.23,0.000203,2]
[403853182,1769602241612,-250.0,0.000203,10]
[403853185,1769602241622,-5113.89446448,0.00020346,2]
[403853186,1769602241631,-5000.0,0.00020346,2]
[403853189,1769602241641,-5000.0,0.00020346,2]
[403853191,1769602241653,-5000.0,0.00020346,2]
[403853193,1769602241663,-5000.0,0.00020346,2]
[403853195,1769602241672,-288.165348,0.00020346,2]
[403853197,1769602241681,-1957.856,0.00020372,2]
[403853198,1769602241691,-250.0,0.000204,10]
[403853201,1769602241702,-2030.296672,0.00020427,2]
[403853203,1769602241712,-2105.41764886,0.00020482,2]
[403853204,1769602241721,-250.0,0.000205,10]
[403853207,1769602241731,-2183.31810187,0.00020537,2]
[403853209,1769602241740,-269.50562542,0.00020592,2]
[403853211,1769602241749,-250.0,0.000206,10]
[403853212,1769602241758,-496.23,0.000207,2]
[403853214,1769602241767,-250.0,0.000207,10]
[403853216,1769602241776,-250.0,0.000208,10]
[403853218,1769602241785,-250.0,0.000209,10]
[403853220,1769602241794,-22830.4,0.0002095,3]
[403853222,1769602241804,-178.945783,0.0002095,2]
[403853224,1769602241814,-3000.0,0.00021,2]
[403853226,1769602241829,-250.0,0.00021,10]
[403853228,1769602241838,-3000.0,0.0002101,2]
[403853230,1769602241847,-3000.0,0.0002102,2]
[403853232,1769602241857,-3000.0,0.0002103,2]
[403853234,1769602241866,-3000.0,0.0002104,2]
[403853236,1769602241876,-3000.0,0.0002105,2]
[403853238,1769602241885,-3000.0,0.0002106,2]
[403853240,1769602241895,-3000.0,0.0002107,2]
[403853243,1769602241905,-3000.0,0.0002108,2]
[403853245,1769602241914,-3000.0,0.0002109,2]
[403853247,1769602241924,-151.0,0.0002109,2]
[403853248,1769602241933,-3000.0,0.000211,2]
[403853250,1769602241942,-4683.12,0.000211,2]
[403853252,1769602241951,-496.23,0.000211,2]
[403853254,1769602241960,-250.0,0.000211,10]
[403853256,1769602241970,-3000.0,0.0002111,2]
[403853258,1769602241979,-3000.0,0.0002112,2]
[403853260,1769602241989,-3000.0,0.0002113,2]
[403853262,1769602241998,-3000.0,0.0002114,2]
[403853264,1769602242008,-3000.0,0.0002115,2]
[403853266,1769602242017,-3000.0,0.0002116,2]
[403853268,1769602242026,-3000.0,0.0002117,2]
[403853270,1769602242035,-763.48403779,0.00021172,2]
[403853272,1769602242045,-3000.0,0.0002118,2]
[403853274,1769602242054,-3000.0,0.0002119,2]
[403853276,1769602242063,-3000.0,0.000212,2]
[403853278,1769602242072,-289.19,0.000212,2]
[403853280,1769602242082,-11040.2,0.000212,2]
[403853282,1769602242095,-250.0,0.000212,2]
[403853284,1769602242104,-250.0,0.000212,2]
[403853286,1769602242113,-250.0,0.000212,2]
[403853287,1769602242122,-250.0,0.000212,2]
[403853289,1769602242132,-250.0,0.000212,2]
[403853291,1769602242141,-250.0,0.000212,2]
[403853293,1769602242150,-217.8,0.000212,2]
[403853295,1769602242159,-3000.0,0.0002121,2]
[403853297,1769602242170,-3000.0,0.0002122,2]
[403853299,1769602242179,-3000.0,0.0002123,2]
[403853301,1769602242188,-3000.0,0.0002124,2]
[403853303,1769602242197,-3000.0,0.0002125,2]
[403853305,1769602242207,-3000.0,0.0002126,2]
[403853307,1769602242217,-3000.0,0.0002127,2]
[403853309,1769602242226,-3485.909266,0.0002128,2]
[403853311,1769602242235,-496.23,0.000215,2]
[403853313,1769602242244,-1369.0,0.00021549,2]
[403853315,1769602242252,-630.0,0.00021549,2]
[403853317,1769602242261,-2150.0,0.00021549,2]
[403853319,1769602242271,-500.0,0.00021756,2]
[403853321,1769602242280,-496.23,0.000219,2]
[403853323,1769602242289,-1906.799103,0.00021918,2]
[403853325,1769602242298,-1906.799103,0.00021918,2]
[403853327,1769602242307,-1906.799103,0.00021918,2]
[403853329,1769602242317,-1906.799103,0.00021918,2]
[403853331,1769602242327,-150.0,0.00021918,2]
[403853333,1769602242337,-9392.0431636,0.00021956,2]
[403853335,1769602242347,-299.88,0.000221,2]
[403853337,1769602242357,-1000.0,0.00022208,10]
[403853339,1769602242366,-791.0,0.00022208,10]
[403853340,1769602242376,-2000.0,0.00022222,7]
[403853342,1769602242385,-496.23,0.000223,2]
[403853344,1769602242395,-7506.87052314,0.00022317,2]
[403853346,1769602242404,-586.34,0.000224,7]
[403853348,1769602242415,-300.0,0.00022466,2]
[403853351,1769602242425,-504.63,0.0002251,7]
[403853352,1769602242434,-168.0,0.00022685,8]
[403853354,1769602242445,-496.23,0.000227,2]
[403853356,1769602242458,-160.0,0.00023,3]
[403853358,1769602242467,-1041.66666667,0.00023,3]
[403853360,1769602242476,-450.0,0.00023014,2]
[403853362,1769602242485,-500.0,0.000231,7]
[403853364,1769602242494,-835.81410453,0.00023172,2]
[403853366,1769602242504,-496.23,0.000232,2]
[403853368,1769602242513,-730.0,0.000233,3]
[403853370,1769602242522,-500.0,0.0002351,7]
[403853372,1769602242531,-600.0,0.00023562,2]
[403853374,1769602242541,-151.0,0.00023562,2]
[403853376,1769602242550,-266.479841,0.00023562,2]
[403853378,1769602242559,-496.23,0.000236,2]
[403853380,1769602242568,-400.0,0.0002362,3]
[403853382,1769602242576,-400.0,0.0002362,3]
[403853384,1769602242585,-161.0,0.0002394,3]
[403853386,1769602242594,-400.0,0.0002394,3]
[403853388,1769602242603,-496.23,0.00024,2]
[403853390,1769602242611,-400.0,0.000241,3]
[403853392,1769602242621,-151.0,0.000241,2]
[403853394,1769602242630,-500.0,0.000241,7]
[403853396,1769602242639,-750.0,0.0002411,2]
[403853398,1769602242648,-730.0,0.0002437,3]
[403853400,1769602242657,-496.23,0.000244,2]
[403853402,1769602242666,-400.0,0.0002442,3]
[403853404,1769602242675,-400.0,0.0002442,3]
[403853406,1769602242685,-1000.0,0.00024429,10]
[403853408,1769602242695,-1000.0,0.00024429,10]
[403853411,1769602242704,-2000.0,0.00024444,7]
[403853414,1769602242713,-1369.0,0.00024549,2]
[403853417,1769602242722,-630.0,0.00024549,2]
[403853420,1769602242731,-2150.0,0.00024549,2]
[403853422,1769602242740,-45660.8,0.000246,3]
[403853424,1769602242749,-199.0,0.00024622,2]
[403853426,1769602242757,-150.0,0.00024658,2]
[403853428,1769602242766,-741.63220281,0.00024658,2]
[403853430,1769602242776,-200.0,0.00024658,2]
[403853432,1769602242785,-500.0,0.00024658,2]
[403853434,1769602242794,-161.0,0.0002466,3]
[403853436,1769602242803,-730.0,0.0002469,3]
[403853438,1769602242814,-400.0,0.0002469,3]
[403853440,1769602242823,-199.0,0.00024726,2]
[403853442,1769602242832,-400.0,0.0002474,3]
[403853444,1769602242841,-1650.783913,0.0002474,5]
[403853446,1769602242850,-1000.0,0.0002476,5]
[403853448,1769602242859,-1000.0,0.0002478,5]
[403853450,1769602242868,-500.0,0.00024795,2]
[403853452,1769602242877,-496.23,0.000248,2]
[403853454,1769602242886,-1000.0,0.000248,5]
[403853456,1769602242895,-25937.418288,0.00024811,30]
[403853457,1769602242904,-199.0,0.00024823,2]
[403853459,1769602242913,-7506.87052314,0.00024846,2]
[403853462,1769602242924,-11040.2,0.000249,2]
[403853464,1769602242932,-187.913251,0.000249,7]
[403853466,1769602242944,-187.913251,0.000249,7]
[403853467,1769602242953,-187.913251,0.000249,7]
[403853469,1769602242963,-187.913251,0.000249,7]
[403853472,1769602242972,-500.0,0.000249,9]
[403853474,1769602242981,-250.0,0.000249,2]
[403853477,1769602242990,-250.0,0.000249,2]
[403853481,1769602242999,-151.0,0.000249,7]
[403853483,1769602243009,-500.0,0.000249,9]
[403853487,1769602243018,-151.0,0.000249,7]
[403853491,1769602243027,-155.045049,0.000249,7]
[403853494,1769602243037,-151.0,0.000249,7]
[403853497,1769602243046,-1906.799103,0.000249,7]
[403853499,1769602243055,-1906.799103,0.000249,7]
[403853501,1769602243063,-1906.799103,0.000249,7]
[403853503,1769602243072,-1906.799103,0.000249,7]
[403853505,1769602243081,-631853.12512,0.000249,2]
[403853507,1769602243090,-500.0,0.00024932,2]
[403853509,1769602243103,-400.0,0.0002495,3]
[403853511,1769602243112,-1215.349795,0.0002498,5]
[403853513,1769602243121,-201.0,0.00025,17]
[403853515,1769602243130,-1041.66666667,0.00025,30]
[403853517,1769602243141,-1000.0,0.00025,5]
[403853520,1769602243150,-1041.66666667,0.00025,7]
[403853521,1769602243159,-160.0,0.00025,7]
[403853523,1769602243170,-293.6277292,0.00025,30]
[403853525,1769602243179,-184.0,0.00025,7]
[403853527,1769602243189,-199.0,0.00025004,2]
[403853529,1769602243198,-730.0,0.0002506,3]
[403853531,1769602243208,-500.0,0.00025069,2]
[403853534,1769602243218,-299.88,0.000251,2]
[403853536,1769602243227,-500.0,0.000251,7]
[403853537,1769602243236,-908.14417127,0.00025172,2]
[403853539,1769602243246,-496.23,0.000252,2]
[403853541,1769602243255,-250.0,0.00025205,2]
[403853543,1769602243264,-500.0,0.00025206,2]
[403853546,1769602243274,-9392.0431636,0.00025207,2]
[403853547,1769602243283,-730.0,0.0002527,3]
[403853549,1769602243293,-4683.12,0.000253,14]
[403853551,1769602243302,-400.0,0.0002533,3]
[403853553,1769602243311,-199.0,0.00025335,2]
[403853555,1769602243320,-500.0,0.00025343,2]
[403853557,1769602243330,-400.0,0.0002538,3]
[403853559,1769602243339,-199.0,0.00025439,2]
[403853561,1769602243348,-730.0,0.0002546,3]
[403853563,1769602243357,-400.0,0.0002546,3]
[403853565,1769602243366,-500.0,0.0002548,2]
[403853567,1769602243375,-496.23,0.000256,2]
[403853569,1769602243384,-500.0,0.00025617,2]
[403853571,1769602243393,-400.0,0.0002573,3]
[403853573,1769602243401,-350.0,0.00025753,2]
[403853575,1769602243411,-500.0,0.00025754,2]
[403853577,1769602243419,-199.0,0.0002576,2]
[403853579,1769602243428,-400.0,0.0002578,3]
[403853581,1769602243438,-400.0,0.0002578,3]
[403853582,1769602243447,-400.0,0.0002586,3]
[403853584,1769602243456,-500.0,0.00025891,2]
[403853586,1769602243464,-199.0,0.00025896,2]
[403853588,1769602243474,-496.23,0.00026,2]
[403853590,1769602243484,-500.0,0.00026028,2]
[403853592,1769602243493,-400.0,0.0002605,3]
[403853594,1769602243502,-199.0,0.00026065,2]
[403853596,1769602243510,-199.0,0.0002609,2]
[403853598,1769602243519,-400.0,0.000261,3]
[403853600,1769602243528,-199.0,0.00026113,7]
[403853602,1769602243537,-199.0,0.00026143,2]
[403853604,1769602243546,-500.0,0.00026165,2]
[403853606,1769602243555,-500.63898669,0.00026301,2]
[403853608,1769602243564,-500.0,0.00026302,2]
[403853610,1769602243573,-496.23,0.000264,2]
[403853612,1769602243582,-38000.0,0.00026413,7]
[403853614,1769602243591,-38000.0,0.00026421,7]
[403853616,1769602243600,-38000.0,0.0002643,7]
[403853618,1769602243610,-9540.26328179,0.00026439,7]
[403853620,1769602243620,-500.0,0.00026439,2]
[403853622,1769602243629,-38000.0,0.00026439,7]
[403853624,1769602243639,-730.0,0.0002649,3]
[403853626,1769602243648,-400.0,0.00026505,3]
[403853628,1769602243658,-400.0,0.0002651,3]
[403853630,1769602243668,-157.0,0.00026521,20]
[403853632,1769602243678,-500.0,0.00026576,2]
[403853634,1769602243687,-289.19,0.000266,7]
[403853636,1769602243697,-199.0,0.000266,2]
[403853638,1769602243707,-2000.0,0.00026667,7]
[403853639,1769602243717,-199.0,0.0002667,2]
[403853641,1769602243726,-199.0,0.00026676,2]
[403853643,1769602243737,-199.0,0.00026694,2]
[403853645,1769602243746,-515.81424765,0.00026713,2]
[403853647,1769602243755,-199.0,0.00026734,2]
[403853649,1769602243764,-199.0,0.00026785,2]
[403853651,1769602243774,-7410.690939,0.00026796,30]
[403853653,1769602243783,-496.23,0.000268,2]
[403853655,1769602243792,-199.0,0.00026805,2]
[403853657,1769602243801,-199.0,0.00026838,2]
[403853659,1769602243810,-1000.0,0.00026872,30]
[403853661,1769602243819,-1000.0,0.00026872,30]
[403853663,1769602243830,-579.0,0.00026872,30]
[403853665,1769602243839,-167.0,0.00027,7]
[403853667,1769602243848,-1025.77308519,0.00027,2]
[403853669,1769602243858,-509.0,0.00027,7]
[403853671,1769602243868,-1041.66666667,0.00027,30]
[403853673,1769602243877,-400.0,0.0002701,3]
[403853675,1769602243887,-13848.78925603,0.000271,2]
[403853677,1769602243896,-11040.2,0.000271,2]
[403853679,1769602243906,-1906.799103,0.000271,7]
[403853681,1769602243916,-1906.799103,0.000271,7]
[403853683,1769602243925,-1906.799103,0.000271,7]
[403853685,1769602243935,-1906.799103,0.000271,7]
[403853687,1769602243945,-400.0,0.0002715,3]
[403853689,1769602243954,-980.474238,0.00027172,2]
[403853691,1769602243964,-6825.9306699,0.00027279,2]
[403853693,1769602243973,-1391.8249567,0.00027279,2]
[403853695,1769602243984,-151.0,0.00027279,7]
[403853697,1769602243993,-1041.66666667,0.000273,7]
[403853699,1769602244003,-160.0,0.000273,7]
[403853701,1769602244012,-496.23,0.000273,2]
[403853703,1769602244026,-161.0,0.00027333,3]
[403853705,1769602244035,-151.0,0.00027338,7]
[403853707,1769602244045,-962.05971617,0.00027359,2]
[403853709,1769602244053,-3848.23886468,0.00027359,2]
[403853711,1769602244063,-8658.53744553,0.00027359,2]
[403853713,1769602244073,-7506.87052314,0.00027375,2]
[403853715,1769602244082,-680.55935822,0.00027391,2]
[403853716,1769602244094,-2722.23743288,0.00027391,2]
[403853718,1769602244104,-6125.03422399,0.00027391,2]
[403853732,1769602244115,-224.45329272,0.00027397,2]
[403853734,1769602244237,-249.25290045,0.00027397,2]
[403853736,1769602244246,-151.0,0.00027397,7]
[403853738,1769602244256,-151.0,0.00027397,7]
[403853740,1769602244266,-151.0,0.00027397,7]
[403853742,1769602244276,-151.0,0.00027397,7]
[403853744,1769602244285,-162.264162,0.00027397,7]
[403853746,1769602244295,-157.68060397,0.00027397,5]
[403853748,1769602244304,-500.0,0.00027397,5]
[403853750,1769602244313,-150.0,0.00027397,5]
[403853752,1769602244323,-516.41838477,0.00027397,5]
[403853754,1769602244333,-150.0,0.00027397,5]
[403853756,1769602244342,-586.34,0.000274,7]
[403853759,1769602244351,-988.8744102,0.00027534,2]
[403853761,1769602244361,-730.0,0.00027536,3]
[403853763,1769602244370,-400.0,0.00027547,3]
[403853764,1769602244388,-1369.0,0.00027549,2]
[403853766,1769602244397,-630.0,0.00027549,2]
[403853768,1769602244407,-2150.0,0.00027549,2]
[403853770,1769602244416,-160.0,0.00027635,3]
[403853772,1769602244426,-509.0,0.00027671,14]
[403853775,1769602244436,-496.23,0.000277,2]
[403853777,1769602244447,-400.0,0.0002779,3]
[403853779,1769602244456,-1041.66666667,0.000278,7]
[403853781,1769602244466,-160.0,0.000278,7]
[403853783,1769602244476,-730.0,0.00027856,3]
[403853785,1769602244485,-400.0,0.00027907,3]
[403853787,1769602244494,-400.0,0.00027925,3]
[403853789,1769602244504,-1000.0,0.00027945,5]
[403853791,1769602244513,-250.0,0.00027945,5]
[403853793,1769602244522,-250.0,0.00027945,5]
[403853795,1769602244532,-318.0,0.00027982,3]
[403853797,1769602244541,-1197.33,0.00028,30]
[403853799,1769602244554,-1266.873442,0.00028,2]
[403853801,1769602244563,-1021.0,0.00028,2]
[403853803,1769602244572,-403.0,0.00028056,3]
[403853805,1769602244582,-800.0,0.00028097,2]
[403853807,1769602244593,-151.0,0.000281,7]
[403853809,1769602244603,-496.23,0.000281,2]
[403853811,1769602244613,-800.0,0.00028141,2]
[403853813,1769602244622,-800.0,0.00028222,2]
[403853815,1769602244632,-390.51322604,0.00028385,2]
[403853817,1769602244641,-2301.9439903,0.00028389,2]
[403853819,1769602244651,-4683.12,0.000284,14]
[403853821,1769602244660,-400.0,0.00028433,3]
[403853823,1769602244670,-9392.0431636,0.00028459,2]
[403853825,1769602244679,-378.7157442,0.00028491,30]
[403853827,1769602244688,-378.7157442,0.00028491,30]
[403853829,1769602244698,-378.7157442,0.00028491,30]
[403853831,1769602244708,-181.08010149,0.00028492,5]
[403853833,1769602244717,-187.78006525,0.00028492,5]
[403853835,1769602244727,-194.72792766,0.00028492,5]
[403853837,1769602244737,-201.93286099,0.00028492,5]
[403853839,1769602244746,-209.40437684,0.00028492,5]
[403853841,1769602244757,-217.15233878,0.00028492,5]
[403853843,1769602244767,-225.18697532,0.00028492,5]
[403853845,1769602244777,-233.51889341,0.00028492,5]
[403853847,1769602244787,-242.15909246,0.00028492,5]
[403853849,1769602244797,-251.11897888,0.00028492,5]
[403853851,1769602244807,-260.4103811,0.00028492,5]
[403853853,1769602244816,-270.0455652,0.00028492,5]
[403853855,1769602244826,-280.03725112,0.00028492,5]
[403853857,1769602244835,-290.39862941,0.00028492,5]
[403853859,1769602244845,-301.1433787,0.00028492,5]
[403853861,1769602244854,-2398.4119403,0.00028492,5]
[403853862,1769602244863,-2487.15318209,0.00028492,5]
[403853864,1769602244872,-2579.17784983,0.00028492,5]
[403853866,1769602244881,-2674.60743027,0.00028492,5]
[403853868,1769602244891,-2773.56790519,0.00028492,5]
[403853870,1769602244901,-181.08010149,0.00028492,5]
[403853872,1769602244910,-2876.18991768,0.00028492,5]
[403853874,1769602244919,-201.99068702,0.00028492,5]
[403853876,1769602244929,-599.60298507,0.00028492,5]
[403853878,1769602244939,-2982.60894464,0.00028492,5]
[403853880,1769602244951,-666.9797729,0.00028492,5]
[403853882,1769602244961,-3092.96547559,0.00028492,5]
[403853884,1769602244971,-496.47127164,0.00028492,5]
[403853886,1769602244980,-181.08010149,0.00028492,5]
[403853888,1769602244989,-514.84070869,0.00028492,5]
[403853890,1769602244999,-533.88981491,0.00028492,5]
[403853892,1769602245009,-201.42789143,0.00028492,5]
[403853894,1769602245018,-553.64373807,0.00028492,5]
[403853896,1769602245027,-448.72793421,0.00028492,5]
[403853898,1769602245042,-350.0,0.00028493,5]
[403853900,1769602245051,-350.0,0.00028493,5]
[403853902,1769602245061,-41980.19703357,0.000285,7]
[403853904,1769602245070,-20000.0,0.000285,30]
[403853906,1769602245079,-172.98,0.000285,2]
[403853908,1769602245092,-256.36,0.000285,2]
[403853910,1769602245101,-151.0,0.000285,7]
[403853911,1769602245111,-152.0,0.000285,7]
[403853913,1769602245120,-151.0,0.000285,7]
[403853915,1769602245131,-151.0,0.000285,7]
[403853917,1769602245140,-152.0,0.000285,7]
[403853920,1769602245150,-151.0,0.000285,7]
[403853922,1769602245160,-152.0,0.000285,7]
[403853923,1769602245170,-151.0,0.000285,7]
[403853926,1769602245180,-151.0,0.000285,7]
[403853927,1769602245190,-151.0,0.000285,7]
[403853930,1769602245201,-151.0,0.000285,7]
[403853931,1769602245210,-152.0,0.000285,7]
[403853933,1769602245219,-292.0,0.000285,7]
[403853935,1769602245229,-152.0,0.000285,7]
[403853937,1769602245239,-240.0,0.000285,7]
[403853939,1769602245248,-187.913251,0.000285,7]
[403853941,1769602245257,-187.913251,0.000285,7]
[403853943,1769602245267,-187.913251,0.000285,7]
[403853945,1769602245277,-187.913251,0.000285,7]
[403853947,1769602245287,-496.23,0.000285,2]
[403853949,1769602245296,-1000.0,0.000285,2]
[403853951,1769602245308,-198.855906,0.000285,2]
[403853953,1769602245317,-1500.0,0.000285,2]
[403853955,1769602245328,-1267.65515542,0.000285,7]
[403853957,1769602245338,-218.27018368,0.00028575,30]
[403853959,1769602245348,-801.13,0.000286,2]
[403853961,1769602245359,-730.0,0.00028622,3]
[403853963,1769602245368,-728.0,0.00028696,3]
[403853965,1769602245378,-400.0,0.00028696,3]
[403853967,1769602245387,-218.27018368,0.00028712,30]
[403853969,1769602245396,-4000.0,0.0002876,5]
[403853971,1769602245405,-19161.44904375,0.0002876,2]
[403853973,1769602245415,-167.0,0.00028767,14]
[403853975,1769602245424,-509.0,0.00028767,14]
[403853976,1769602245433,-5000.0,0.00028775,30]
[403853978,1769602245444,-5000.0,0.00028775,30]
[403853980,1769602245454,-5000.0,0.00028775,30]
[403853982,1769602245465,-5000.0,0.00028775,30]
[403853984,1769602245475,-2280.84,0.00028775,30]
[403853986,1769602245484,-172.86446078,0.000288,7]
[403853988,1769602245495,-152.09,0.000288,2]
[403853990,1769602245505,-172.01,0.000288,7]
[403853992,1769602245515,-289.19,0.000288,7]
[403853994,1769602245525,-5065.55000107,0.00028837,7]
[403853996,1769602245534,-218.27018368,0.00028849,30]
[403853997,1769602245543,-730.0,0.00028885,3]
[403853998,1769602245553,-400.0,0.00028885,3]
[403853999,1769602245562,-2000.0,0.00028889,7]
[403854000,1769602245572,-150.47,0.000289,2]
[403854001,1769602245581,-172.98,0.000289,2]
[403854002,1769602245590,-256.36,0.000289,2]
[403854003,1769602245599,-496.23,0.000289,2]
[403854004,1769602245608,-218.27018368,0.00028986,30]
[403854005,1769602245617,-801.13,0.00029,2]
[403854006,1769602245626,-891.49052411,0.00029,2]
[403854007,1769602245635,-2419.09730755,0.00029,10]
[403854008,1769602245645,-1041.66666667,0.00029,30]
[403854009,1769602245655,-1500.0,0.00029,2]
[403854010,1769602245664,-1021.0,0.00029,2]
[403854011,1769602245673,-1906.799103,0.00029041,7]
[403854012,1769602245682,-1906.799103,0.00029041,7]
[403854013,1769602245692,-1906.799103,0.00029041,7]
[403854014,1769602245701,-1906.799103,0.00029041,7]
[403854015,1769602245710,-7940.026006,0.00029041,60]
[403854016,1769602245720,-5558.018204,0.00029041,30]
[403854017,1769602245729,-450.0,0.00029041,5]
[403854018,1769602245739,-450.0,0.00029041,5]
[403854019,1769602245749,-992.70662951,0.00029044,7]
[403854020,1769602245758,-547.0,0.00029073,3]
[403854021,1769602245767,-11040.2,0.000291,2]
[403854022,1769602245776,-154.916813,0.000291,7]
[403854023,1769602245785,-218.27018368,0.00029123,30]
[403854024,1769602245794,-160.0,0.00029124,4]
[403854025,1769602245803,-500.0,0.00029145,7]
[403854026,1769602245812,-1052.80430474,0.00029172,2]
[403854027,1769602245821,-586.34,0.000292,7]
[403854028,1769602245830,-218.27018368,0.0002926,30]
[403854029,1769602245839,-172.98,0.000293,2]
[403854031,1769602245848,-256.36,0.000293,2]
[403854032,1769602245858,-496.23,0.000293,2]
[403854034,1769602245868,-218.27018368,0.00029397,30]
[403854036,1769602245877,-801.13,0.000294,2]
[403854038,1769602245887,-151.0,0.0002945,7]
[403854040,1769602245896,-151.0,0.0002945,7]
[403854042,1769602245906,-152.09,0.000295,2]
[403854044,1769602245915,-150.47,0.000295,2]
[403854046,1769602245925,-1500.0,0.000295,2]
[403854048,1769602245935,-218.27018368,0.00029534,30]